bitfinex-derivatives/quotes_BNBF0:USTF0_20250309
["timestamp","ask_amount","ask_price","bid_price","bid_amount"]
[1741564579233,1.38655735,554.56,553.45,0.29657967]
[1741564579431,0.31400999,554.55,553.46,0.29657967]
[1741564579634,0.31400999,554.55,553.47,0.29657967]
[1741564579834,0.31400999,554.55,553.48,0.29657967]
[1741564580035,0.31400999,554.55,553.69,1.3329422]
[1741564580238,0.31400999,554.55,553.7,0.29657967]
[1741564581436,1.078,554.57,553.7,0.29657967]
[1741564581833,1.078,554.57,553.73,1.3329422]
[1741564582034,1.078,554.57,553.74,0.29657967]
[1741564582431,1.078,554.57,553.73,1.3329422]
[1741564582635,1.078,554.57,553.75,0.29651159]
[1741564582831,1.078,554.57,553.76,0.29651159]
[1741564583034,1.078,554.57,553.74,0.29651159]
[1741564584638,1.078,554.57,553.77,1.3329422]
[1741564584938,1.078,554.57,553.78,0.65766583]
[1741564585131,1.078,554.57,553.79,0.65765931]
[1741564585436,1.078,554.57,553.8,0.29651159]
[1741564586235,1.349,554.57,553.8,0.29651159]
[1741564586839,1.349,554.57,553.81,0.36113468]
[1741564587038,1.349,554.57,553.82,0.29651159]
[1741564587238,1.349,554.57,553.83,0.36112164]
[1741564587438,1.349,554.57,553.84,0.29651159]
[1741564587638,1.349,554.57,553.85,0.3611086]
[1741564588137,1.349,554.57,553.86,0.2964208]
[1741564588338,1.349,554.57,553.87,0.36109556]
[1741564588636,1.349,554.57,553.88,0.2964208]
[1741564588836,1.349,554.57,553.89,0.6575033]
[1741564589034,1.349,554.57,553.9,0.65749678]
[1741564589238,1.349,554.57,553.91,0.29642078]
[1741564589434,1.349,554.57,553.92,0.36106296]
[1741564589638,1.349,554.57,553.93,0.29642078]
[1741564589839,1.349,554.57,553.94,0.36104993]
[1741564590040,1.349,554.57,553.95,0.29642078]
[1741564590240,1.349,554.57,553.96,0.36103689]
[1741564590639,1.349,554.57,553.97,0.29642078]
[1741564590841,1.349,554.57,553.98,0.36102386]
[1741564591140,1.349,554.57,553.99,0.29642078]
[1741564591342,1.349,554.57,554.0,0.36101083]
[1741564591642,1.349,554.57,554.01,0.29642078]
[1741564591845,1.349,554.57,554.02,0.65735679]
[1741564592137,1.349,554.57,554.03,0.296359]
[1741564592342,1.349,554.57,554.04,0.36098476]
[1741564592542,1.349,554.57,554.05,0.296359]
[1741564592744,1.349,554.57,554.06,0.36097173]
[1741564593044,1.349,554.57,554.07,0.296359]
[1741564593244,1.349,554.57,554.08,0.3609587]
[1741564593545,1.349,554.57,554.09,0.296359]
[1741564593745,1.349,554.57,554.1,0.36094567]
[1741564593945,1.349,554.57,554.11,0.296359]
[1741564594244,1.349,554.57,554.12,0.36093264]
[1741564594436,1.349,554.57,554.13,0.296359]
[1741564594641,1.349,554.57,554.14,0.36091962]
[1741564594845,1.349,554.57,554.15,0.296359]
[1741564595038,1.349,554.57,554.16,0.36090659]
[1741564595240,1.349,554.57,554.17,0.296359]
[1741564595442,1.349,554.57,554.18,0.36089357]
[1741564595644,1.349,554.57,554.19,0.296359]
[1741564595838,1.349,554.57,554.2,0.36088054]
[1741564596046,1.349,554.57,554.21,0.296359]
[1741564596245,1.349,554.57,554.22,0.36086752]
[1741564596446,1.349,554.57,554.23,0.296359]
[1741564596647,1.349,554.57,554.24,0.3608545]
[1741564596846,1.349,554.57,554.25,0.296359]
[1741564597047,1.349,554.57,554.26,0.36084148]
[1741564597242,1.349,554.57,554.27,0.29635968]
[1741564597442,1.349,554.57,554.28,0.36082846]
[1741564597642,0.271,554.57,554.29,0.29635968]
[1741564597846,0.271,554.57,554.3,0.36081544]
[1741564598147,0.31383442,554.75,554.31,0.29635968]
[1741564598344,0.31383442,554.75,554.32,0.36080242]
[1741564599247,10.29694252,554.99,554.32,0.36080242]
[1741564599443,0.31382168,554.75,554.32,0.36080242]
[1741564599749,8.06683252,554.97,554.32,0.36080242]
[1741564600046,8.06683252,554.96,554.32,0.36080242]
[1741564600251,2.23011,554.97,554.32,0.36080242]
[1741564600252,8.06683252,554.95,554.32,0.36080242]
[1741564600451,8.06683252,554.94,554.33,0.29642051]
[1741564600752,7.52601232,554.93,554.34,0.3607894]
[1741564601045,11.14925661,554.92,554.34,0.3607894]
[1741564601251,7.52601232,554.91,554.34,0.3607894]
[1741564601449,7.52601232,554.9,554.34,0.3607894]
[1741564601649,7.52601232,554.89,554.34,0.3607894]
[1741564601846,2.89462012,554.88,554.34,0.3607894]
[1741564602046,2.89462012,554.87,554.34,0.3607894]
[1741564602243,2.89462012,554.86,554.34,0.3607894]
[1741564602452,2.89462012,554.85,554.34,0.3607894]
[1741564602751,4.28775441,554.84,554.34,0.3607894]
[1741564602946,2.89462012,554.83,554.34,0.3607894]
[1741564603152,1.0917567,554.82,554.34,0.3607894]
[1741564603350,2.8946076,554.83,554.34,0.3607894]
[1741564603552,1.39313429,554.82,554.34,0.3607894]
[1741564604252,1.39313429,554.81,554.34,0.3607894]
[1741564604651,0.31384432,554.86,554.34,0.3607894]
[1741564605454,1.39235593,554.85,554.34,0.3607894]
[1741564606051,0.31384432,554.86,554.34,0.3607894]
[1741564606052,1.39235593,554.84,554.34,0.3607894]
[1741564606254,1.39235593,554.84,554.35,0.29637121]
[1741564606453,0.31384432,554.86,554.35,0.29637121]
[1741564606454,0.31384432,554.86,554.36,0.36077639]
[1741564608153,1.39165725,554.9,554.36,0.36077639]
[1741564608353,1.39165725,554.9,554.37,0.29634112]
[1741564608758,0.271,554.91,554.37,0.29634112]
[1741564610058,0.271,554.91,554.38,0.36076337]
[1741564610263,0.271,554.91,554.39,0.29634112]
[1741564610662,0.271,554.91,554.4,0.36075036]
[1741564610963,0.271,554.91,554.41,0.29634112]
[1741564611263,0.271,554.91,554.42,0.36073734]
[1741564611460,0.271,554.91,554.43,0.29634112]
[1741564611660,0.271,554.91,554.44,0.36072433]
[1741564611860,0.271,554.91,554.45,0.29634112]
[1741564612068,0.271,554.91,554.01,1.3329422]
[1741564612069,0.271,554.91,554.46,0.65701839]
[1741564612261,0.271,554.91,554.47,0.65701188]
[1741564612460,0.271,554.91,554.48,0.65700538]
[1741564612662,0.271,554.91,554.49,0.65699887]
[1741564612862,0.271,554.91,554.5,0.65699237]
[1741564613066,0.271,554.91,554.51,0.29630707]
[1741564615563,0.271,554.91,554.52,0.29611478]
[1741564615766,0.271,554.91,554.51,0.29611478]
[1741564615971,0.271,554.91,554.52,0.29616741]
[1741564616164,0.271,554.91,554.51,0.29616741]
[1741564618472,0.31369862,554.9,554.51,0.29616741]
[1741564619273,0.31369862,554.9,554.52,0.29618797]
[1741564619469,0.31369862,554.9,554.51,0.29618797]
[1741564620273,11.1318754,555.11,554.51,0.29618797]
[1741564620473,7.51587025,555.1,554.51,0.29618797]
[1741564620669,7.51587025,555.09,554.51,0.29618797]
[1741564620864,2.89064369,555.08,554.52,0.36067229]
[1741564621067,2.89064369,555.07,554.53,0.29611554]
[1741564621369,1.48968449,554.94,554.53,0.29611554]
[1741564621572,1.48968449,554.94,554.53,0.65678132]
[1741564621773,1.48968449,554.94,554.54,0.29611554]
[1741564622568,1.76068449,554.94,554.54,0.29611554]
[1741564622772,1.76068449,554.94,554.53,0.36066578]
[1741564623370,1.447,554.94,554.53,0.36066578]
[1741564624171,2.47670847,554.93,554.53,0.36066578]
[1741564624375,2.89044457,554.92,554.53,0.36066578]
[1741564624576,1.0881282,554.91,554.53,0.36066578]
[1741564624769,1.0881282,554.9,554.53,0.36066578]
[1741564625177,2.89044457,554.89,554.53,0.36066578]
[1741564625370,2.89044457,554.88,554.53,0.36066578]
[1741564625571,2.89044457,554.87,554.53,0.36066578]
[1741564625776,1.0881282,554.86,554.53,0.36066578]
[1741564626372,1.38877986,554.85,554.53,0.36066578]
[1741564626773,4.27922443,554.85,554.53,0.36066578]
[1741564626973,1.38877986,554.84,554.53,0.36066578]
[1741564627580,0.271,554.94,554.53,0.36066578]
[1741564629276,1.244,554.94,554.53,0.36066578]
[1741564630481,1.55779338,554.94,554.53,0.36066578]
[1741564632283,1.244,554.94,554.53,0.36066578]
[1741564632784,1.55778772,554.94,554.53,0.36066578]
[1741564633385,1.244,554.94,554.53,0.36066578]
[1741564633981,1.244,554.94,554.54,0.29616005]
[1741564634285,1.244,554.94,554.55,0.36065278]
[1741564634486,1.244,554.94,554.56,0.29616005]
[1741564634685,1.244,554.94,554.57,0.36063977]
[1741564647292,1.39168919,554.93,554.57,0.36063977]
[1741564647693,2.89293916,554.92,554.57,0.36063977]
[1741564647892,2.89293916,554.91,554.57,0.36063977]
[1741564648094,1.39168919,554.91,554.57,0.36063977]
[1741564648690,4.28485632,554.9,554.57,0.36063977]
[1741564648895,1.39168919,554.9,554.57,0.36063977]
[1741564649696,1.39168919,554.89,554.57,0.36063977]
[1741564650291,1.39168919,554.88,554.57,0.36063977]
[1741564650500,1.70555757,554.88,554.57,0.36063977]
[1741564650798,1.178,554.87,554.57,0.36063977]
[1741564652796,2.89374192,554.86,554.57,0.36063977]
[1741564653005,2.89376614,554.85,554.57,0.36063977]
[1741564653196,2.8938311,554.84,554.57,0.36063977]
[1741564653393,1.39274556,554.83,554.57,0.36063977]
[1741564653798,2.89402202,554.82,554.57,0.36063977]
[1741564653992,2.89419405,554.81,554.57,0.36063977]
[1741564654194,2.89419405,554.8,554.57,0.36063977]
[1741564654398,1.39274556,554.8,554.57,0.36063977]
[1741564654994,1.39274556,554.79,554.57,0.36063977]
[1741564655701,4.2869575,554.78,554.57,0.36063977]
[1741564655900,2.48400236,554.77,554.57,0.36063977]
[1741564656200,1.39274556,554.77,554.57,0.36063977]
[1741564656595,1.39274556,554.76,554.57,0.36063977]
[1741564657095,1.178,554.87,554.57,0.36063977]
[1741564657096,1.39274556,554.75,554.57,0.36063977]
[1741564657493,2.22850806,554.83,554.57,0.36063977]
[1741564657494,1.70660262,554.74,554.57,0.36063977]
[1741564658301,1.39274556,554.73,554.57,0.36063977]
[1741564658697,1.39274556,554.72,554.57,0.36063977]
[1741564659203,1.39274556,554.71,554.57,0.36063977]
[1741564659999,1.178,554.87,554.57,0.36063977]
[1741564660396,4.07053421,554.87,554.57,0.36063977]
[1741564660601,0.31384857,554.86,554.57,0.36063977]
[1741564661003,1.70625271,554.86,554.57,0.36063977]
[1741564661506,1.39240414,554.85,554.57,0.36063977]
[1741564662302,1.39240414,554.84,554.57,0.36063977]
[1741564662705,0.31384857,554.86,554.57,0.36063977]
[1741564663308,1.39254587,554.85,554.57,0.36063977]
[1741564663510,2.89295575,554.84,554.57,0.36063977]
[1741564663702,2.89290883,554.83,554.57,0.36063977]
[1741564664004,2.89290883,554.82,554.57,0.36063977]
[1741564664304,2.89302482,554.81,554.57,0.36063977]
[1741564664507,1.80287422,554.81,554.57,0.36063977]
[1741564664708,1.39254587,554.8,554.57,0.36063977]
[1741564664908,0.31384857,554.86,554.57,0.36063977]
[1741564664909,1.39254587,554.79,554.57,0.36063977]
[1741564666003,1.39254587,554.78,554.57,0.36063977]
[1741564666405,1.39254587,554.77,554.57,0.36063977]
[1741564666609,1.39254587,554.77,553.7,1.3329422]
[1741564666610,2.89287008,554.76,553.7,1.3329422]
[1741564666806,2.89287008,554.75,553.72,0.36119338]
[1741564667010,2.89287008,554.74,553.72,0.36119338]
[1741564667204,2.89287008,554.73,553.72,0.36119338]
[1741564667403,3.62053138,554.75,553.72,0.36119338]
[1741564667404,2.89287008,554.72,553.72,0.36119338]
[1741564667607,6.51340146,554.71,553.72,0.36119338]
[1741564667804,2.89287008,554.7,553.72,0.36119338]
[1741564668013,2.89287008,554.69,553.72,0.36119338]
[1741564668204,2.89287008,554.68,553.72,0.36119338]
[1741564668403,4.28541595,554.67,553.72,0.36119338]
[1741564668603,2.89287008,554.66,553.72,0.36119338]
[1741564668908,1.39254587,554.65,553.72,0.36119338]
[1741564669305,1.39254587,554.64,553.72,0.36119338]
[1741564669610,1.70648646,554.64,553.72,0.36119338]
[1741564669810,1.39254587,554.63,553.72,0.36119338]
[1741564670607,1.39254587,554.62,553.72,0.36119338]
[1741564671208,1.39254587,554.61,553.72,0.36119338]
[1741564671911,1.39254587,554.6,553.72,0.36119338]
[1741564672107,1.39254587,554.6,553.73,0.29653985]
[1741564672308,1.39254587,554.6,553.75,0.36117381]
[1741564672508,0.31408793,554.59,553.76,0.29653985]
[1741564672713,1.7066338,554.59,553.78,0.36115424]
[1741564673015,1.39254587,554.58,553.78,0.36115424]
[1741564673412,1.39254587,554.57,553.78,0.36115424]
[1741564674009,0.31408793,554.59,553.78,0.36115424]
[1741564674413,7.518493,554.81,553.78,0.36115424]
[1741564674614,1.38917436,554.58,553.78,0.36115424]
[1741564674813,1.70322544,554.58,553.78,0.36115424]
[1741564675013,1.38917436,554.57,553.78,0.36115424]
[1741564675615,1.38917436,554.56,553.78,0.36115424]
[1741564676216,0.58403407,554.58,553.78,0.36115424]
[1741564676919,1.38835377,554.57,553.78,0.36115424]
[1741564677719,1.38835377,554.56,553.78,0.36115424]
[1741564678518,1.38835377,554.55,553.78,0.36115424]
[1741564679121,0.58403974,554.58,553.78,0.36115424]
[1741564679823,1.38734203,554.57,553.78,0.36115424]
[1741564680519,1.38734203,554.56,553.78,0.36115424]
[1741564680723,1.38734203,554.55,553.78,0.36115424]
[1741564681126,1.068,554.54,553.78,0.36115424]
[1741564681424,2.45534203,554.54,553.78,0.36115424]
[1741564681921,1.38734203,554.53,553.78,0.36115424]
[1741564682223,1.38734203,554.53,553.79,0.29658453]
[1741564682422,1.068,554.54,553.8,0.3611412]
[1741564682623,1.068,554.54,553.81,0.29658453]
[1741564682823,1.068,554.54,553.82,0.36112816]
[1741564683023,1.068,554.54,553.83,0.29658453]
[1741564683223,1.068,554.54,553.84,0.36111512]
[1741564683426,1.068,554.54,553.85,0.29658453]
[1741564683618,4.2758093,554.53,553.86,0.36110208]
[1741564683820,2.88927504,554.52,553.87,0.29664317]
[1741564684017,1.08552831,554.51,553.87,0.29664317]
[1741564684217,2.47206257,554.51,553.88,0.36108904]
[1741564684421,2.11772414,554.5,553.89,0.29664317]
[1741564684619,2.88970167,554.49,553.88,0.36108904]
[1741564684820,2.88970167,554.48,553.88,0.36108904]
[1741564685025,2.88970167,554.47,553.88,0.36108904]
[1741564685228,1.80417336,554.47,553.88,0.36108904]
[1741564685522,1.38653426,554.48,553.89,0.29664049]
[1741564685722,0.31397741,554.5,553.89,0.29664049]
[1741564686227,1.068,554.54,553.89,0.29664049]
[1741564686627,1.38509366,554.53,553.9,0.361076]
[1741564686927,2.46954506,554.53,553.91,0.29664049]
[1741564687127,1.38509366,554.52,553.92,0.36106296]
[1741564687331,1.38509366,554.52,553.93,0.29664049]
[1741564687627,1.69905407,554.52,553.94,0.36104993]
[1741564687828,0.31396041,554.52,553.95,0.29664049]
[1741564688028,0.31396041,554.52,553.96,0.36103689]
[1741564688329,0.31396041,554.52,553.97,0.29664049]
[1741564688629,0.31396041,554.52,553.98,0.36102386]
[1741564688929,0.31396041,554.52,553.99,0.29664049]
[1741564689130,0.31396041,554.52,554.0,0.36101083]
[1741564689325,0.31396041,554.52,554.01,0.29664049]
[1741564689729,0.31396041,554.52,554.02,0.36099779]
[1741564689926,0.31396041,554.52,554.03,0.29664049]
[1741564690131,0.31396041,554.52,554.04,0.36098476]
[1741564691231,1.38509366,554.51,554.04,0.36098476]
[1741564691732,1.38509366,554.5,554.04,0.36098476]
[1741564692328,1.38509366,554.51,554.04,0.36098476]
[1741564692730,0.31402841,554.5,554.04,0.36098476]
[1741564692932,1.69912207,554.5,554.04,0.36098476]
[1741564693532,0.31402841,554.5,554.04,0.36098476]
[1741564694333,1.38509366,554.49,554.04,0.36098476]
[1741564694832,0.31402841,554.5,554.04,0.36098476]
[1741564694833,1.38509366,554.48,554.04,0.36098476]
[1741564695434,2.46944827,554.49,554.04,0.36098476]
[1741564695734,0.31405391,554.47,554.04,0.36098476]
[1741564698331,1.38509366,554.48,554.04,0.36098476]
[1741564698533,0.31403691,554.46,554.04,0.36098476]
[1741564699134,1.69913057,554.46,554.04,0.36098476]
[1741564699637,0.31403691,554.46,554.04,0.36098476]
[1741564700038,1.38509366,554.45,554.04,0.36098476]
[1741564700540,1.38509366,554.44,554.04,0.36098476]
[1741564701536,1.69913057,554.44,554.04,0.36098476]
[1741564702732,0.31403691,554.44,554.04,0.36098476]
[1741564703337,1.3882946,554.43,554.04,0.36098476]
[1741564703835,0.31403691,554.44,554.04,0.36098476]
[1741564704836,1.38898352,554.43,554.04,0.36098476]
[1741564706442,0.31403691,554.44,554.04,0.36098476]
[1741564707343,0.27,554.45,554.04,0.36098476]
[1741564707644,1.70412467,554.44,554.04,0.36098476]
[1741564708042,1.39011043,554.43,554.04,0.36098476]
[1741564708541,0.31401424,554.44,554.04,0.36098476]
[1741564709139,1.35801424,554.44,554.04,0.36098476]
[1741564709739,1.39064375,554.43,554.04,0.36098476]
[1741564710142,1.39064375,554.42,554.04,0.36098476]
[1741564710540,1.39064375,554.41,554.04,0.36098476]
[1741564710738,1.39064375,554.4,554.04,0.36098476]
[1741564711137,1.39064375,554.39,554.04,0.36098476]
[1741564711544,1.39064375,554.38,554.04,0.36098476]
[1741564712342,1.39064375,554.37,554.04,0.36098476]
[1741564713049,1.39064375,554.36,554.04,0.36098476]
[1741564713949,1.39064375,554.35,554.04,0.36098476]
[1741564714150,1.37938157,554.35,554.04,0.36098476]
[1741564714552,0.31410635,554.34,554.04,0.36098476]
[1741564715352,2.89374831,554.33,554.04,0.36098476]
[1741564715549,2.89374831,554.32,554.04,0.36098476]
[1741564715745,2.89433532,554.31,554.04,0.36098476]
[1741564715945,0.31410635,554.34,554.04,0.36098476]
[1741564715946,5.1206999,554.3,554.04,0.36098476]
[1741564716149,7.52485572,554.29,553.36,1.3329422]
[1741564716353,7.52500353,554.28,553.38,0.3614153]
[1741564716552,2.89433532,554.27,553.39,0.29626859]
[1741564716747,5.1206999,554.26,553.41,0.36139571]
[1741564716947,2.89433532,554.25,553.42,0.29626859]
[1741564717151,2.89433532,554.24,553.44,0.36137612]
[1741564717354,5.1206999,554.23,553.45,0.29626859]
[1741564717554,2.89433532,554.22,553.45,0.29626859]
[1741564717753,2.89334764,554.21,553.45,0.29626859]
[1741564717950,2.89334764,554.2,553.46,0.36136306]
[1741564718154,2.89334764,554.19,553.46,0.36136306]
[1741564718455,2.89334764,554.18,553.46,0.36136306]
[1741564718755,9.7488352,554.17,553.46,0.36136306]
[1741564718955,2.89334764,554.16,553.46,0.36136306]
[1741564719154,2.89334764,554.15,553.46,0.36136306]
[1741564719357,2.89334764,554.14,553.46,0.36136306]
[1741564719551,2.89334764,554.13,553.46,0.36136306]
[1741564719758,2.89278199,554.12,553.46,0.36136306]
[1741564719956,5.11914657,554.11,553.46,0.36136306]
[1741564720150,2.89278199,554.1,553.46,0.36136306]
[1741564720351,2.89278199,554.09,553.46,0.36136306]
[1741564720551,2.89278199,554.08,553.46,0.36136306]
[1741564720750,1.08731637,554.07,553.46,0.36136306]
[1741564721658,1.08731637,554.08,553.46,0.36136306]
[1741564721855,2.89278199,554.07,553.46,0.36136306]
[1741564722057,2.89278199,554.06,553.46,0.36136306]
[1741564722357,2.89278199,554.05,553.46,0.36136306]
[1741564722555,2.89278199,554.04,553.46,0.36136306]
[1741564722750,0.31427372,554.1,553.46,0.36136306]
[1741564722751,5.11620872,554.03,553.46,0.36136306]
[1741564723058,2.89278199,554.02,553.46,0.36136306]
[1741564723256,1.08731637,554.01,553.46,0.36136306]
[1741564723556,2.89278199,554.01,553.46,0.36136306]
[1741564723757,1.08731637,554.0,553.46,0.36136306]
[1741564724158,2.89278199,554.08,553.46,0.36136306]
[1741564724360,2.89278199,554.07,553.46,0.36136306]
[1741564724554,2.22240263,554.08,553.46,0.36136306]
[1741564724555,2.89278199,554.06,553.46,0.36136306]
[1741564724755,5.11518462,554.05,553.46,0.36136306]
[1741564724954,2.89278199,554.04,553.46,0.36136306]
[1741564725160,2.89278199,554.03,553.46,0.36136306]
[1741564725360,2.89278199,554.02,553.46,0.36136306]
[1741564725560,2.89042694,554.01,553.46,0.36136306]
[1741564725760,1.08496132,554.0,553.46,0.36136306]
[1741564726156,1.38885568,553.99,553.46,0.36136306]
[1741564726562,1.70324296,553.99,553.46,0.36136306]
[1741564726858,1.38885568,553.98,553.46,0.36136306]
[1741564727059,1.38885568,553.97,553.46,0.36136306]
[1741564727557,1.38885568,553.96,553.46,0.36136306]
[1741564728063,1.38885568,553.95,553.46,0.36136306]
[1741564728362,1.38885568,553.94,553.46,0.36136306]
[1741564728558,1.38885568,553.93,553.46,0.36136306]
[1741564729363,2.65485568,553.92,553.46,0.36136306]
[1741564729564,3.24024722,553.92,553.46,0.36136306]
[1741564729862,4.27861759,553.91,553.46,0.36136306]
[1741564730067,2.47260638,553.9,553.46,0.36136306]
[1741564730257,1.38885568,553.9,553.46,0.36136306]
[1741564730664,1.38885568,553.89,553.46,0.36136306]
[1741564731063,1.38885568,553.88,553.46,0.36136306]
[1741564731666,1.38885568,553.87,553.46,0.36136306]
[1741564731866,1.38885568,553.91,553.46,0.36136306]
[1741564732468,1.38885568,553.9,553.46,0.36136306]
[1741564732968,1.38885568,553.89,553.46,0.36136306]
[1741564733469,1.85139154,553.92,553.46,0.36136306]
[1741564733967,1.38522254,553.91,553.46,0.36136306]
[1741564734368,1.38522254,553.9,553.46,0.36136306]
[1741564734966,1.38522254,553.91,553.46,0.36136306]
[1741564735465,0.314437,553.9,553.46,0.36136306]
[1741564737067,1.38458658,553.89,553.46,0.36136306]
[1741564737468,1.38458658,553.91,553.46,0.36136306]
[1741564738464,1.537,553.92,553.46,0.36136306]
[1741564738662,0.31442563,553.91,553.47,0.29639185]
[1741564738861,0.31442563,553.91,553.48,0.36135]
[1741564739062,0.31442563,553.91,553.49,0.29639185]
[1741564739267,0.31442563,553.91,553.49,0.65773532]
[1741564739468,0.31442563,553.91,553.5,0.29639185]
[1741564740068,0.31442563,553.91,553.49,0.36134347]
[1741564740069,0.31442563,553.91,553.51,0.29638533]
[1741564740270,1.537,553.92,553.51,0.29638533]
[1741564740470,1.537,553.92,553.52,0.29638533]
[1741564740671,1.537,553.92,553.5,0.29638786]
[1741564740866,1.537,553.92,553.49,0.36134347]
[1741564740867,1.537,553.92,553.51,0.29638857]
[1741564741170,1.537,553.92,553.52,0.29638857]
[1741564741372,1.537,553.92,553.5,0.29638857]
[1741564741566,0.31426662,553.91,553.49,0.36134347]
[1741564741782,0.31426662,553.91,553.5,0.29639773]
[1741564742566,0.31426662,553.91,553.49,0.36134347]
[1741564743367,1.537,553.92,553.49,0.36134347]
[1741564743573,1.69892296,553.9,553.49,0.36134347]
[1741564744071,1.3844817,553.89,553.49,0.36134347]
[1741564744768,1.3844817,553.88,553.49,0.36134347]
[1741564745271,1.3844817,553.87,553.49,0.36134347]
[1741564745871,1.3844817,553.86,553.49,0.36134347]
[1741564746469,2.46362981,553.91,553.49,0.36134347]
[1741564747372,1.3844817,553.9,553.49,0.36134347]
[1741564747669,1.3844817,553.89,553.49,0.36134347]
[1741564748573,1.3844817,553.88,553.49,0.36134347]
[1741564748774,1.3844817,553.87,553.49,0.36134347]
[1741564748975,1.6554817,553.87,553.49,0.36134347]
[1741564749674,1.3844817,553.86,553.49,0.36134347]
[1741564750482,0.31441143,553.85,553.49,0.36134347]
[1741564750779,1.69889313,553.85,553.49,0.36134347]
[1741564751283,0.31441143,553.85,553.49,0.36134347]
[1741564751679,1.236,553.84,553.49,0.36134347]
[1741564753486,1.236,553.84,553.5,0.29636826]
[1741564753677,1.236,553.84,553.51,0.36133041]
[1741564753882,1.236,553.84,553.52,0.29636826]
[1741564754081,1.236,553.84,553.53,0.36131736]
[1741564755085,1.236,553.84,553.54,0.2963433]
[1741564756675,1.236,553.84,553.55,0.3613043]
[1741564762483,1.236,553.84,553.56,0.29630674]
[1741564763291,1.236,553.84,553.55,0.3613043]
[1741564763597,1.236,553.84,553.56,0.29627042]
[1741564764797,8.05656663,554.36,553.56,0.29627042]
[1741564765097,8.05656663,554.35,553.57,0.36129125]
[1741564765300,8.05656663,554.34,553.58,0.29627042]
[1741564765592,8.05656663,554.33,553.59,0.3612782]
[1741564765798,7.51728084,554.32,553.6,0.29627042]
[1741564766096,11.12382001,554.31,553.61,0.36126515]
[1741564766395,7.51728084,554.3,553.62,0.29627042]
[1741564766598,11.12382001,554.29,553.63,0.36125209]
[1741564766797,2.89126186,554.28,553.64,0.29627042]
[1741564766996,4.69280502,554.27,553.64,0.29627042]
[1741564767196,2.89126186,554.26,553.64,0.29627042]
[1741564767499,1.08626585,554.25,553.64,0.29627042]
[1741564767700,2.4724804,554.25,553.64,0.29627042]
[1741564768000,2.79399601,554.24,553.64,0.29627042]
[1741564768500,1.38621455,554.23,553.64,0.29627042]
[1741564768897,1.38621455,554.22,553.64,0.29627042]
[1741564769400,0.989,554.24,553.65,0.36123904]
[1741564769700,1.39104751,554.23,553.66,0.29627042]
[1741564769900,1.39104751,554.23,553.67,0.361226]
[1741564770092,1.39104751,554.22,553.68,0.29627042]
[1741564770296,1.39104751,554.22,553.69,0.36121295]
[1741564770699,1.39104751,554.22,553.7,0.2962345]
[1741564770900,0.989,554.24,553.71,0.3611999]
[1741564771099,0.989,554.24,553.72,0.2962345]
[1741564771299,1.39149012,554.23,553.73,0.36118686]
[1741564771501,1.39149012,554.23,553.74,0.2962345]
[1741564772100,0.989,554.24,553.74,0.2962345]
[1741564772302,0.989,554.24,553.75,0.36117381]
[1741564772513,0.989,554.24,553.75,0.65737799]
[1741564772705,0.989,554.24,553.76,0.29620418]
[1741564772906,0.989,554.24,553.77,0.36116077]
[1741564773209,0.989,554.24,553.78,0.29620418]
[1741564773503,0.989,554.24,553.79,0.36114772]
[1741564773703,0.989,554.24,553.8,0.29620418]
[1741564773908,0.989,554.24,553.81,0.36113468]
[1741564774104,0.989,554.24,553.82,0.29620418]
[1741564774605,0.989,554.24,553.83,0.36112164]
[1741564774806,0.989,554.24,553.84,0.29620418]
[1741564775008,0.989,554.24,553.85,0.3611086]
[1741564776312,0.989,554.24,553.86,0.29618239]
[1741564776513,0.989,554.24,553.87,0.36109556]
[1741564779006,0.989,554.24,553.88,0.29617082]
[1741564779210,0.989,554.24,553.89,0.36108252]
[1741564779908,0.27,554.33,553.89,0.36108252]
[1741564780807,1.3908525,554.32,553.89,0.36108252]
[1741564781513,0.27,554.33,553.89,0.36108252]
[1741564782909,1.38991651,554.32,553.89,0.36108252]
[1741564783305,1.043,554.33,553.89,0.36108252]
[1741564784510,1.043,554.33,553.9,0.2961721]
[1741564784707,1.043,554.33,553.91,0.36106948]
[1741564785112,1.043,554.33,553.92,0.29615688]
[1741564785412,1.043,554.33,553.93,0.36105645]
[1741564786209,1.043,554.33,553.94,0.29613197]
[1741564786405,1.313,554.33,553.94,0.29613197]
[1741564786611,1.313,554.33,553.95,0.36104341]
[1741564786815,1.313,554.33,553.96,0.29613197]
[1741564787010,1.313,554.33,553.95,0.36104341]
[1741564787211,1.313,554.33,553.96,0.29612372]
[1741564787408,1.313,554.33,553.95,0.36104341]
[1741564787708,1.313,554.33,553.96,0.29609805]
[1741564788113,1.313,554.33,553.97,0.36103038]